bitfinex/quotes_SOLUSD_20241007
["timestamp","ask_amount","ask_price","bid_price","bid_amount"]
[1728266831760,6.6265,150.91,150.85,23.2009]
[1728266831930,15.0259,150.93,150.85,23.2009]
[1728266832132,15.0259,150.93,150.89,6.6272]
[1728266832333,15.0259,150.93,150.85,16.5722]
[1728266832334,15.0259,150.93,150.87,6.6278]
[1728266832561,21.6517,150.93,150.87,6.6278]
[1728266832759,1.32522191,150.92,150.85,23.2008]
[1728266833157,6.6263,150.92,150.86,6.6285]
[1728266833544,6.6263,150.92,150.86,7.95403613]
[1728266833754,1.32522191,150.91,150.86,6.6285]
[1728266834062,6.6263,150.92,150.86,6.6285]
[1728266834439,7.95212191,150.91,150.85,16.5722]
[1728266834772,6.6286,150.87,150.81,23.2072]
[1728266834949,1.32522191,150.86,150.78,6.1301]
[1728266835254,1.32522191,150.86,150.75,0.99542721]
[1728266835255,6.629,150.86,150.77,16.5807]
[1728266835752,6.6292,150.85,150.8,6.6312]
[1728266835949,23.902374,150.88,150.8,6.6312]
[1728266836142,6.6291,150.85,150.8,6.6312]
[1728266836334,6.6291,150.85,150.79,6.6317]
[1728266836538,23.902374,150.88,150.8,7.95721017]
[1728266836539,6.6286,150.86,150.8,7.95721017]
[1728266837153,6.6286,150.86,150.8,6.6311]
[1728266838569,6.6291,150.85,150.8,6.6311]
[1728266839236,6.6285,150.87,150.81,7.95676229]
[1728266842268,21.6399,150.89,150.85,6.629]
[1728266842446,21.6399,150.89,150.83,16.5745]
[1728266842647,21.6399,150.89,150.83,24.5302615]
[1728266842969,28.2674,150.89,150.83,24.5302615]
[1728266843468,6.6278,150.88,150.83,16.5745]
[1728266843791,6.6278,150.88,150.83,17.90033135]
[1728266843970,21.6399,150.89,150.8,16.5782]
[1728266844172,6.6283,150.87,150.82,6.6303]
[1728266844344,6.6291,150.85,150.8,23.2091]
[1728266844545,21.6399,150.89,150.76,33.1638]
[1728266844546,16.2088,150.83,150.76,16.5817]
[1728266845047,6.631,150.81,150.76,16.5817]
[1728266845262,22.839,150.83,150.77,6.6325]
[1728266845462,7.95572191,150.82,150.76,16.5817]
[1728266845762,6.6304,150.82,150.77,1.32640082]
[1728266847169,6.6304,150.82,150.77,7.95870082]
[1728266847668,6.6313,150.8,150.76,16.5817]
[1728266848564,6.6318,150.79,150.74,6.6335]
[1728266849272,6.6313,150.8,150.75,1.32655326]
[1728266849468,6.6313,150.8,150.75,7.95995326]
[1728266849773,6.6313,150.8,150.75,6.6334]
[1728266850969,22.839,150.83,150.78,6.6319]
[1728266852150,16.2088,150.83,150.77,16.5812]
[1728266852353,6.6308,150.82,150.72,33.1719]
[1728266852555,16.2088,150.83,150.74,16.5845]
[1728266852869,6.6308,150.81,150.76,6.633]
[1728266853476,30.407284,150.82,150.77,6.6325]
[1728266853664,30.407284,150.82,150.77,7.95885303]
[1728266853972,30.407284,150.82,150.77,6.6325]
[1728266854362,30.407284,150.82,150.74,16.5845]
[1728266854363,23.776884,150.82,150.75,1.32635336]
[1728266854674,6.6317,150.79,150.74,23.2183]
[1728266855685,7.95772191,150.78,150.74,16.5845]
[1728266856282,1.32522191,150.78,150.74,16.5845]
[1728266856458,1.32522191,150.81,150.74,23.2183]
[1728266856670,6.6323,150.78,150.74,16.5845]
[1728266856983,6.6317,150.79,150.74,23.2183]
[1728266857683,0.12549,150.81,150.74,16.5845]
[1728266857870,6.6313,150.8,150.75,7.9599095]
[1728266858181,23.902374,150.82,150.77,6.6326]
[1728266858384,23.902374,150.82,150.75,1.3265095]
[1728266858385,22.8387,150.83,150.78,7.9584597]
[1728266859278,16.2088,150.83,150.78,1.3263597]
[1728266859584,16.2088,150.83,150.8,6.6312]
[1728266859782,6.6291,150.85,150.8,6.6312]
[1728266860573,6.0213,150.86,150.78,16.5794]
[1728266860774,1.32522191,150.84,150.71,52.20372474]
[1728266860980,6.6308,150.81,150.76,6.633]
[1728266861486,1.32522191,150.8,150.76,6.633]
[1728266861863,6.6308,150.81,150.76,6.633]
[1728266862057,1.32522191,150.8,150.75,16.5835]
[1728266862266,6.6313,150.8,150.75,23.2169]
[1728266862488,24.027864,150.85,150.76,1.32643239]
[1728266862672,6.6304,150.82,150.77,6.6322]
[1728266863289,6.63,150.83,150.78,1.32632297]
[1728266863471,6.6299,150.84,150.79,6.6316]
[1728266863676,6.0213,150.86,150.77,16.5806]
[1728266863877,6.6303,150.83,150.78,6.6321]
[1728266864072,6.0213,150.86,150.79,1.32627998]
[1728266864382,6.63,150.83,150.79,6.6316]
[1728266864879,23.902374,150.85,150.77,16.5806]
[1728266865464,1.32522191,150.84,150.75,50.0]
[1728266865663,16.3203,150.87,150.83,6.6299]
[1728266865865,16.3203,150.87,150.84,6.6295]
[1728266866061,6.6273,150.89,150.84,6.6295]
[1728266866499,6.5635,150.9,150.82,1.32578928]
[1728266866680,6.6278,150.88,150.83,6.6299]
[1728266867067,6.5635,150.9,150.86,6.6285]
[1728266868192,16.5061,150.91,150.87,7.95369683]
[1728266868890,16.5061,150.91,150.87,6.6281]
[1728266869697,16.5061,150.91,150.86,16.5715]
[1728266870066,23.1328,150.91,150.86,16.5715]
[1728266870988,16.5061,150.91,150.87,1.32550163]
[1728266871188,6.0682,150.94,150.89,6.6272]
[1728266871399,29.87039339,150.95,150.9,1.32521924]
[1728266871400,16.3361,150.95,150.9,1.32521924]
[1728266871889,6.626,150.92,150.87,6.6282]
[1728266872700,6.6264,150.91,150.85,16.5717]
[1728266872868,6.6264,150.91,150.85,23.2007]
[1728266873266,6.627,150.9,150.85,23.2007]
[1728266873691,1.32522191,150.92,150.82,0.12549]
[1728266873868,0.12549,150.91,150.82,20.0]
[1728266874275,6.6277,150.89,150.83,6.6299]
[1728266874493,6.6273,150.89,150.84,7.955147]
[1728266874805,6.6273,150.89,150.84,6.6295]
[1728266875483,23.776884,150.91,150.82,20.0]
[1728266875686,1.32522191,150.9,150.85,6.6288]
[1728266875892,6.627,150.9,150.85,6.6288]
[1728266876498,1.32522191,150.91,150.84,16.5733]
[1728266876690,6.6273,150.89,150.84,23.2028]
[1728266877479,6.6278,150.88,150.84,16.5733]
[1728266877681,6.6278,150.88,150.82,26.6303]
[1728266877897,6.6278,150.88,150.82,6.6303]
[1728266877898,22.1699,150.88,150.82,6.6303]
[1728266878498,6.629,150.86,150.81,23.2076]
[1728266878687,6.629,150.86,150.79,6.6688]
[1728266878688,15.5421,150.88,150.83,16.574]
[1728266878996,15.5421,150.88,150.84,7.9547995]
[1728266880393,15.5421,150.88,150.8,20.0]
[1728266880394,7.95372191,150.87,150.8,20.0]
[1728266880601,1.32522191,150.87,150.8,16.578]
[1728266880784,6.6296,150.84,150.78,6.6317]
[1728266880989,6.6306,150.82,150.77,23.2138]
[1728266881999,6.6309,150.81,150.77,16.5813]
[1728266882184,6.6304,150.82,150.77,23.2138]
[1728266882385,6.0274,150.84,150.73,6.0323]
[1728266882599,6.0274,150.84,150.77,6.6325]
[1728266882890,6.6307,150.82,150.77,6.6325]
[1728266883092,1.32522191,150.81,150.76,6.633]
[1728266883399,1.32522191,150.82,150.76,6.633]
[1728266883599,6.6304,150.82,150.77,1.32629891]
[1728266883803,6.6304,150.82,150.77,6.6325]
[1728266884097,12.6572,150.84,150.79,6.6314]
[1728266884910,6.0274,150.84,150.8,1.326159]
[1728266885081,6.0274,150.84,150.81,6.6304]
[1728266885495,23.776884,150.85,150.81,6.6304]
[1728266886408,23.776884,150.85,150.8,1.326159]
[1728266886593,1.32522191,150.84,150.79,16.5792]
[1728266886794,6.6296,150.84,150.79,16.5792]
[1728266887105,6.6296,150.84,150.79,17.90530024]
[1728266887291,6.6296,150.84,150.79,24.53660024]
[1728266887798,23.776884,150.85,150.79,17.90530024]
[1728266888101,23.776884,150.85,150.81,6.6308]
[1728266888283,30.405984,150.85,150.8,7.95729637]
[1728266889310,6.6295,150.84,150.79,23.2108]
[1728266889609,6.6305,150.82,150.77,6.6325]
[1728266889985,6.6305,150.82,150.76,16.5823]
[1728266889986,6.63,150.83,150.78,6.6317]
[1728266890189,6.6295,150.84,150.79,6.6316]
[1728266890401,6.6295,150.84,150.79,7.95775221]
[1728266890607,6.6295,150.84,150.79,6.6316]
[1728266890917,1.32522191,150.84,150.76,16.5823]
[1728266891210,6.6299,150.83,150.78,6.6321]
[1728266891612,30.406284,150.85,150.79,6.6313]
[1728266891914,6.6297,150.84,150.79,6.6313]
[1728266892293,6.63,150.83,150.78,23.2117]
[1728266892627,23.776884,150.85,150.78,16.5796]
[1728266892818,6.6295,150.84,150.79,6.6316]
[1728266893123,6.6299,150.83,150.78,23.2117]
[1728266896423,16.3143,150.83,150.75,36.5835]
[1728266896729,16.3143,150.83,150.76,6.633]
[1728266896730,6.6314,150.8,150.76,6.633]
[1728266896933,1.32522191,150.82,150.72,16.5868]
[1728266897226,16.3143,150.83,150.72,16.5868]
[1728266897227,6.632,150.79,150.74,6.6335]
[1728266897432,1.32522191,150.8,150.75,6.633]
[1728266897597,23.776884,150.79,150.75,6.633]
[1728266898000,30.408684,150.79,150.75,6.633]
[1728266898727,30.408684,150.79,150.74,16.5839]
[1728266898728,1.32522191,150.78,150.74,16.5839]
[1728266899433,30.408684,150.79,150.74,16.5839]
[1728266899731,23.776884,150.73,150.68,6.6361]
[1728266900323,1.32522191,150.73,150.68,6.6361]
[1728266900836,6.6349,150.72,150.62,69.01674028]
[1728266901039,6.6349,150.72,150.66,6.6374]
[1728266901327,6.6353,150.71,150.66,6.6374]
[1728266901527,39.605984,150.72,150.62,19.01674028]
[1728266901715,39.605984,150.72,150.69,6.6361]
[1728266902607,39.605984,150.72,150.68,16.591]
[1728266902816,39.605984,150.72,150.68,23.2275]
[1728266904114,1.32522191,150.71,150.68,16.591]
[1728266904424,1.32522191,150.71,150.67,6.637]
[1728266904935,46.240784,150.72,150.67,6.637]
[1728266908233,39.605984,150.72,150.68,6.6365]
[1728266908530,40.93120591,150.72,150.68,6.6365]
[1728266909034,40.93120591,150.72,150.67,6.6369]
[1728266909035,47.56600591,150.72,150.67,6.6369]
[1728266909636,46.240784,150.72,150.67,6.6369]
[1728266910339,39.605984,150.72,150.69,6.636]
[1728266910830,39.605984,150.72,150.68,6.6365]
[1728266912417,15.8291,150.72,150.67,1.32724633]
[1728266912610,15.8291,150.72,150.63,20.12549]
[1728266912611,15.8291,150.72,150.7,6.6353]
[1728266912809,15.8291,150.72,150.71,6.6352]
[1728266913038,6.0978,150.75,150.71,16.5872]
[1728266913341,7.42302191,150.75,150.71,16.5872]
[1728266913544,12.7314,150.75,150.71,16.5872]
[1728266914221,1.32522191,150.74,150.71,16.5872]
[1728266914918,23.776884,150.74,150.71,23.2224]
[1728266916550,23.776884,150.74,150.71,16.5872]
[1728266916849,15.391,150.76,150.75,6.6334]
[1728266917038,6.0033,150.79,150.76,6.6327]
[1728266917244,6.0033,150.79,150.75,16.5826]
[1728266917447,15.4489,150.8,150.78,6.44693749]
[1728266918325,15.4489,150.8,150.77,6.6325]
[1728266918630,15.4489,150.8,150.76,6.633]
[1728266920753,15.4489,150.8,150.76,1.32653]
[1728266920941,15.4489,150.8,150.78,6.6321]
[1728266921332,15.4489,150.8,150.79,6.6317]
[1728266921763,15.4489,150.8,150.77,16.5805]
[1728266922053,15.4489,150.8,150.78,6.6321]
[1728266922750,15.4489,150.8,150.79,6.6317]
[1728266922922,6.0033,150.83,150.8,6.6312]
[1728266923944,6.0033,150.83,150.81,16.5769]
[1728266924129,23.776884,150.83,150.81,23.2077]
[1728266924329,15.1694,150.84,150.81,23.2077]
[1728266925536,15.1694,150.84,150.83,6.6299]
[1728266926060,6.4751,150.87,150.83,6.6299]
[1728266928336,1.32522191,150.86,150.81,16.5769]
[1728266928535,23.776884,150.85,150.81,16.5769]
[1728266928837,1.32522191,150.84,150.81,16.5769]
[1728266929250,23.776884,150.85,150.81,16.5769]
[1728266929559,25.10210591,150.85,150.81,16.5769]
[1728266929970,6.63,150.83,150.78,16.5804]
[1728266930157,23.776884,150.85,150.8,6.6311]
[1728266930461,23.776884,150.86,150.78,16.5804]
[1728266930637,30.405484,150.86,150.81,6.6306]
[1728266930830,30.405484,150.86,150.82,6.6303]
[1728266930831,23.776884,150.86,150.82,6.6303]
[1728266931256,23.776884,150.86,150.81,6.6308]
[1728266931455,23.776884,150.86,150.8,16.5772]
[1728266931664,23.776884,150.86,150.82,6.6304]
[1728266935541,1.32522191,150.85,150.81,6.6308]
[1728266936855,7.95432191,150.85,150.8,23.2084]
[1728266937467,30.406484,150.84,150.79,6.6316]
[1728266937640,1.32522191,150.83,150.79,6.6316]
[1728266937972,7.95522191,150.83,150.78,6.6321]
[1728266938168,23.776884,150.82,150.78,6.6321]
[1728266940978,31.73250591,150.82,150.77,23.2139]
[1728266941150,30.407284,150.82,150.77,23.2139]
[1728266941469,23.776884,150.83,150.78,6.6321]
[1728266942945,30.406884,150.83,150.78,6.6321]
[1728266944270,23.776884,150.83,150.77,16.5814]
[1728266944444,6.6304,150.82,150.77,23.2139]
[1728266944869,22.304,150.82,150.77,16.5814]
[1728266945082,23.776884,150.81,150.77,23.2139]
[1728266945378,23.776884,150.81,150.74,16.5847]
[1728266945379,1.32522191,150.8,150.74,16.5847]
[1728266945558,1.32522191,150.8,150.76,6.633]
[1728266945868,7.95652191,150.8,150.74,23.2182]
[1728266946075,7.95652191,150.8,150.75,6.6332]
[1728266946866,7.95652191,150.8,150.76,6.633]
[1728266947452,6.6313,150.8,150.76,6.633]
[1728266948369,30.218984,150.81,150.74,23.2186]
[1728266948370,7.95732191,150.79,150.74,23.2186]
[1728266948665,23.776884,150.79,150.75,6.6334]
[1728266949055,23.776884,150.8,150.75,6.6333]
[1728266949247,30.408184,150.8,150.75,6.6333]
[1728266949753,23.776884,150.8,150.76,23.2146]
[1728266952649,1.32522191,150.79,150.76,23.2146]
[1728266952948,1.32522191,150.79,150.76,16.5817]
[1728266953648,30.408284,150.8,150.76,16.5817]
[1728266954769,6.6317,150.79,150.74,6.6338]
[1728266954975,23.776884,150.78,150.74,6.6338]
[1728266955274,1.32522191,150.77,150.74,6.6338]
[1728266955782,1.32522191,150.77,150.73,23.22]
[1728266956086,46.089084,150.76,150.71,6.6348]
[1728266956253,1.32522191,150.75,150.71,6.6348]
[1728266956569,23.776884,150.74,150.69,16.5893]
[1728266956775,1.32522191,150.73,150.69,16.5893]
[1728266957376,1.32522191,150.73,150.7,6.6354]
[1728266957962,1.32522191,150.73,150.71,6.6351]
[1728266958360,1.32522191,150.73,150.69,16.5893]
[1728266958679,23.776884,150.71,150.69,16.5893]
[1728266958900,23.776884,150.71,150.65,12.17495787]
[1728266958901,1.32522191,150.7,150.67,6.6369]
[1728266959358,15.0616,150.69,150.67,6.6369]
[1728266959685,15.0616,150.69,150.66,6.637]
[1728266961071,1.32522191,150.68,150.66,6.637]
[1728266961270,15.0616,150.69,150.66,6.637]
[1728266961798,15.0616,150.69,150.66,1.32743622]
[1728266961975,15.0616,150.69,150.68,6.6365]
[1728266962696,15.6452,150.73,150.71,6.6352]
[1728266962871,15.6452,150.73,150.69,6.6357]
[1728266963066,15.6452,150.73,150.71,6.6352]
[1728266963404,15.6452,150.73,150.72,6.6348]
[1728266963995,15.6452,150.73,150.71,6.6351]
[1728266964899,14.6452,150.73,150.7,16.5883]
[1728266965097,14.6452,150.73,150.7,23.2239]
[1728266966081,1.32522191,150.72,150.7,23.2239]
[1728266966283,14.6452,150.73,150.7,23.2239]
[1728266966483,14.6452,150.73,150.71,6.635]
[1728266966985,6.4659,150.75,150.7,16.5883]
[1728266967297,0.25098,150.77,150.74,16.5844]
[1728266967883,15.4151,150.76,150.74,16.5844]
[1728266968506,15.4151,150.76,150.68,1.32696351]
[1728266968507,15.4151,150.76,150.71,23.2227]
[1728266969009,15.4151,150.76,150.72,6.6346]
[1728266970014,24.027864,150.75,150.71,23.2231]
[1728266973291,1.32522191,150.74,150.71,23.2231]
[1728266973802,24.027864,150.75,150.71,23.2231]
[1728266974112,1.32522191,150.74,150.71,23.2231]
[1728266974296,24.027864,150.75,150.71,23.2231]
[1728266976211,15.4151,150.76,150.71,16.5879]
[1728266976399,15.4151,150.76,150.72,6.6344]
[1728266976597,15.4151,150.76,150.73,16.585]
[1728266976812,15.4151,150.76,150.75,6.6334]
[1728266977796,15.4151,150.76,150.73,23.2192]
[1728266977992,15.4151,150.76,150.72,6.6347]
[1728266978298,16.74032191,150.76,150.72,6.6347]
[1728266979510,15.4151,150.76,150.72,6.6347]
[1728266980114,15.4151,150.76,150.72,16.5861]
[1728266980293,15.4151,150.76,150.73,6.6343]
[1728266988314,25.22759591,150.75,150.68,16.5906]
[1728266988515,23.902374,150.75,150.71,6.6352]
[1728266988702,23.902374,150.75,150.72,6.6345]
[1728266990307,23.902374,150.75,150.71,6.6351]
[1728266993422,0.12549,150.74,150.71,6.6351]
[1728266993628,0.12549,150.74,150.7,23.224]
[1728266996582,23.902374,150.75,150.74,6.6339]
[1728266996878,24.027864,150.75,150.69,1.32695792]
[1728266997082,24.027864,150.75,150.72,6.6347]
[1728267000941,24.027864,150.75,150.71,6.6351]
[1728267001143,24.027864,150.75,150.71,10.43710449]
[1728267001757,30.661464,150.75,150.71,3.80200449]
[1728267001958,1.32522191,150.74,150.7,23.2244]
[1728267002354,23.902374,150.73,150.7,23.2244]
[1728267002564,1.32522191,150.72,150.7,16.5888]
[1728267002752,1.32522191,150.72,150.64,20.0]
[1728267003064,16.60739,150.7,150.66,6.6373]
[1728267003368,1.32522191,150.69,150.67,3.80235179]
[1728267003670,1.32522191,150.69,150.66,6.6373]
[1728267003849,1.32522191,150.69,150.67,3.80359038]
[1728267004056,16.60739,150.7,150.67,10.44059038]
[1728267004254,16.60739,150.7,150.67,6.637]
[1728267004645,16.60739,150.7,150.67,10.44059038]
[1728267005659,16.60739,150.7,150.67,6.637]
[1728267006146,16.60739,150.7,150.67,10.44133757]
[1728267006349,16.60739,150.7,150.67,6.637]
[1728267006769,1.32522191,150.69,150.67,6.637]
[1728267006939,1.32522191,150.69,150.66,23.2302]
[1728267007647,23.776884,150.69,150.67,6.637]
[1728267008372,16.4819,150.7,150.67,1.32745382]
[1728267008663,15.0681,150.74,150.69,16.5899]
[1728267009073,1.32522191,150.73,150.67,3.80212459]
[1728267009369,1.32522191,150.73,150.66,16.5931]
[1728267009550,1.32522191,150.73,150.66,20.39522459]
[1728267009957,24.027864,150.72,150.68,6.6365]
[1728267010376,1.32522191,150.71,150.68,6.6365]
[1728267010668,24.027864,150.72,150.68,6.6365]
[1728267010669,30.662664,150.72,150.68,6.6365]
[1728267011068,0.12549,150.72,150.68,16.5907]
[1728267011371,15.0681,150.74,150.72,6.6344]
[1728267012348,15.0681,150.74,150.73,6.6343]
[1728267012795,6.5144,150.76,150.73,6.6343]
[1728267013460,6.5144,150.76,150.74,6.6338]
[1728267014472,16.3658,150.78,150.74,6.6338]
[1728267014654,23.776884,150.77,150.74,6.6338]
[1728267015663,16.3658,150.78,150.74,16.5838]
[1728267016165,6.4201,150.8,150.75,1.32657104]
[1728267016462,6.4201,150.8,150.77,6.6322]
[1728267016673,16.3658,150.82,150.76,16.5817]
[1728267016851,16.3658,150.82,150.78,6.6321]
[1728267017055,1.32522191,150.81,150.78,6.6321]
[1728267017261,16.3658,150.82,150.78,6.6321]
[1728267017461,1.32522191,150.81,150.78,6.6321]
[1728267017665,1.32522191,150.81,150.76,16.5817]
[1728267017863,22.9962,150.82,150.77,6.6325]
[1728267018468,0.25098,150.81,150.77,6.6325]
[1728267018667,24.027864,150.81,150.77,6.6325]
[1728267019271,23.776884,150.79,150.76,16.5817]
[1728267019469,30.658764,150.81,150.76,23.2145]
[1728267020379,23.902374,150.81,150.76,16.5817]
[1728267020582,23.776884,150.81,150.76,16.5817]
[1728267021473,16.3658,150.82,150.78,16.5796]
[1728267021659,6.6295,150.85,150.79,1.32626636]
[1728267021862,6.6295,150.85,150.8,6.6309]
[1728267022181,22.2173,150.86,150.81,6.6307]
[1728267022484,7.95432191,150.85,150.79,6.6313]
[1728267022981,6.6296,150.84,150.79,6.6313]
[1728267023183,1.32522191,150.83,150.78,16.5796]
[1728267023360,6.6304,150.82,150.78,16.5796]
[1728267023560,1.32522191,150.81,150.78,16.5796]
[1728267023760,23.902374,150.82,150.78,16.5796]
[1728267023990,15.5886,150.86,150.78,16.5796]
[1728267023991,24.027864,150.83,150.79,6.6316]
[1728267025415,30.657864,150.83,150.78,23.2117]
[1728267027117,24.027864,150.83,150.78,16.5796]
[1728267027301,24.027864,150.83,150.79,6.6316]
[1728267027725,1.32522191,150.82,150.78,16.5796]
[1728267027913,30.657864,150.83,150.78,23.2116]
[1728267028105,24.027864,150.83,150.8,6.6311]
[1728267028305,23.902374,150.83,150.79,6.6316]
[1728267028804,1.32522191,150.82,150.79,6.6316]
[1728267029320,1.32522191,150.82,150.78,16.5796]
[1728267029510,1.32522191,150.82,150.78,23.2116]
[1728267029710,7.95562191,150.82,150.78,16.5796]
[1728267031108,6.6304,150.82,150.78,16.5796]
[1728267032006,1.32522191,150.81,150.78,16.5796]
[1728267032231,6.90863003,150.88,150.84,16.573]
[1728267032416,6.6256,150.93,150.87,6.628]
[1728267032923,6.626,150.92,150.86,23.1991]
[1728267033107,7.95172191,150.91,150.86,16.5706]
[1728267033428,7.95172191,150.91,150.84,6.6291]
[1728267033429,23.46432191,150.91,150.84,6.6291]
[1728267033626,23.46432191,150.91,150.83,16.5749]
[1728267033627,22.1391,150.91,150.85,6.6287]
[1728267033927,22.1391,150.91,150.84,1.32571375]
[1728267034302,15.5126,150.91,150.86,6.6286]
[1728267034502,15.5126,150.91,150.87,6.6279]
[1728267035330,15.5126,150.91,150.86,16.5711]
[1728267035523,1.32522191,150.9,150.86,16.5711]
[1728267035724,23.776884,150.89,150.86,16.5711]
[1728267036633,23.776884,150.87,150.83,16.5748]
[1728267036801,1.32522191,150.86,150.83,16.5748]
[1728267037004,30.531574,150.85,150.8,6.6309]
[1728267037310,30.531574,150.85,150.79,16.5787]
[1728267037311,1.32522191,150.84,150.79,16.5787]
[1728267037516,40.086474,150.85,150.8,6.6311]
[1728267038735,0.12549,150.82,150.75,16.5829]
[1728267039043,0.12549,150.81,150.75,16.5829]
[1728267039339,6.2797,150.84,150.75,16.5829]
[1728267039340,24.027864,150.79,150.75,16.5829]
[1728267039643,23.80662191,150.78,150.72,16.587]
[1728267039816,23.80662191,150.78,150.73,6.6343]
[1728267039817,15.8493,150.78,150.73,6.6343]
[1728267040438,1.32522191,150.77,150.73,6.6343]
[1728267040828,15.8493,150.78,150.73,6.6343]
[1728267041642,15.8493,150.78,150.75,16.5832]
[1728267041844,15.8493,150.78,150.76,6.633]
[1728267043521,24.027864,150.81,150.77,6.6326]
[1728267043721,0.25098,150.79,150.75,16.5832]
[1728267043929,24.027864,150.79,150.75,23.2164]
[1728267044139,23.776884,150.82,150.75,16.5832]
[1728267044642,0.25098,150.81,150.75,16.5832]
[1728267044837,0.25098,150.81,150.77,6.6325]
[1728267045547,0.12549,150.81,150.78,6.6319]
[1728267045752,22.5142,150.83,150.77,16.5805]
[1728267045753,15.8838,150.83,150.77,16.5805]
[1728267045927,15.8838,150.83,150.8,6.6311]
[1728267046123,15.8838,150.83,150.79,6.6316]
[1728267046631,17.20902191,150.83,150.79,6.6316]
[1728267047218,15.8838,150.83,150.79,6.6316]
[1728267047424,17.20902191,150.83,150.79,6.6316]
[1728267047824,17.20902191,150.83,150.78,6.6321]
[1728267048038,17.20902191,150.83,150.77,16.5805]
[1728267048039,23.902374,150.82,150.77,16.5805]
[1728267048238,1.32522191,150.81,150.77,23.213]
[1728267049255,30.532774,150.82,150.77,23.213]
[1728267049550,1.32522191,150.81,150.77,23.213]
[1728267050745,30.532774,150.82,150.77,23.213]
[1728267050947,30.533674,150.8,150.74,16.5847]
[1728267051152,1.32522191,150.79,150.74,23.2185]
[1728267051451,7.95692191,150.79,150.74,23.2185]
[1728267052226,30.533674,150.8,150.74,16.5847]
[1728267052524,30.533674,150.8,150.75,6.6333]
[1728267052726,1.32522191,150.79,150.75,6.6333]
[1728267053147,23.902374,150.8,150.76,6.633]
[1728267053339,23.902374,150.8,150.75,6.6334]
[1728267053728,30.533874,150.8,150.75,6.6334]
[1728267055074,8.08251191,150.79,150.74,23.2185]
[1728267055366,0.12549,150.77,150.68,6.1979]
[1728267055663,23.902374,150.76,150.72,6.6347]
[1728267058866,6.6321,150.79,150.74,6.6339]
[1728267059175,20.0,150.82,150.73,16.585]
[1728267059380,6.6317,150.8,150.74,6.6338]
[1728267059543,39.36834443,150.83,150.74,6.6338]
[1728267059740,6.6319,150.79,150.74,6.6338]
[1728267060177,1.32522191,150.78,150.73,23.2192]
[1728267060359,30.660464,150.77,150.73,16.585]
[1728267060566,1.45071191,150.76,150.73,16.585]
[1728267061647,40.425184,150.77,150.75,6.6334]
[1728267061851,40.425184,150.77,150.68,39.3793]
[1728267061852,23.776884,150.8,150.76,16.582]
[1728267062054,15.5929,150.81,150.77,6.6322]
[1728267062259,22.2237,150.81,150.77,6.6322]
[1728267062656,22.2237,150.81,150.76,16.582]
[1728267062852,22.2237,150.81,150.76,23.215]
[1728267063572,24.027864,150.8,150.76,23.215]
[1728267064254,24.027864,150.8,150.76,16.582]
[1728267064444,1.32522191,150.79,150.75,6.6334]
[1728267064871,30.659264,150.8,150.75,6.6334]
[1728267065069,7.95702191,150.79,150.74,6.6339]
[1728267065372,30.534674,150.78,150.73,23.2198]
[1728267068471,30.534674,150.78,150.7,6.6353]
[1728267068472,0.12549,150.76,150.7,6.6353]
[1728267068650,6.6335,150.75,150.7,6.6353]
[1728267068851,0.12549,150.76,150.69,16.5897]
[1728267069048,1.32522191,150.75,150.71,6.6352]
[1728267069452,1.32522191,150.75,150.69,16.5897]
[1728267069667,1.32522191,150.75,150.7,6.6356]
[1728267069668,6.6335,150.75,150.7,6.6356]
[1728267069853,1.32522191,150.74,150.7,6.6356]
[1728267070867,6.6347,150.73,150.69,16.5897]
[1728267071176,1.32522191,150.72,150.69,16.5897]